fUSD/lending_fUSD_20240301
["ID","MTS","AMOUNT","RATE_DAILY","PERIOD"]
[315915710,1709279942818,500.0,0.00022465,2]
[315915711,1709279943060,500.0,0.00022549,2]
[315915712,1709279943128,500.0,0.00022739,2]
[315915713,1709279943740,500.0,0.00022823,2]
[315915714,1709279943798,3019.7147658,0.0002299,2]
[315915715,1709279944744,569.59,0.00021917,2]
[315915716,1709279945046,569.59,0.00022191,2]
[315915717,1709279945171,500.0,0.00021917,2]
[315915718,1709279945295,569.59,0.00022465,2]
[315915719,1709279945450,2022.31,0.00021999,2]
[315915720,1709279945492,500.0,0.00022191,2]
[315915721,1709279945582,569.59,0.00022739,2]
[315915722,1709279945719,2022.31,0.00022273,2]
[315915723,1709279945764,500.0,0.00022465,2]
[315915724,1709279946028,2022.31,0.00022547,2]
[315915725,1709279946068,500.0,0.00022739,2]
[315915726,1709279946348,2022.31,0.00022821,2]
[315915727,1709279946790,500.0,0.00021917,2]
[315915728,1709279946856,500.0,0.00022191,2]
[315915729,1709279947114,500.0,0.00022465,2]
[315915730,1709279947515,500.0,0.00022739,2]
[315915731,1709279948456,508.05,0.0002027,2]
[315915732,1709279948661,1388.34,0.00022549,2]
[315915733,1709279948700,508.05,0.00022534,2]
[315915734,1709279948943,1388.34,0.00022823,2]
[315915735,1709279949370,878.95,0.00021917,2]
[315915736,1709279949980,878.95,0.00022191,2]
[315915737,1709279950252,878.95,0.00022465,2]
[315915738,1709279950541,878.95,0.00022739,2]
[315915739,1709279954106,500.0,0.00021917,2]
[315915740,1709279954373,500.0,0.00022191,2]
[315915741,1709279954432,723.55,0.00021917,2]
[315915742,1709279954664,500.0,0.00022465,2]
[315915743,1709279954704,723.55,0.00022191,2]
[315915744,1709279954947,500.0,0.00022739,2]
[315915745,1709279954991,723.55,0.00022465,2]
[315915746,1709279955270,723.55,0.00022739,2]
[315915747,1709279956077,500.0,0.00021917,2]
[315915748,1709279956158,500.0,0.00021917,2]
[315915749,1709279956333,500.0,0.00022191,2]
[315915750,1709279956418,523.46851226,0.00022191,2]
[315915751,1709279956552,164.8281048,0.000228,2]
[315915752,1709279956597,500.0,0.00022465,2]
[315915753,1709279957226,500.0,0.00022739,2]
[315915754,1709279957271,584.0,0.00022189,2]
[315915755,1709279958231,15301.79,0.00022549,2]
[315915756,1709279958496,15301.79,0.00022823,2]
[315915757,1709279959003,668.94,0.00021917,2]
[315915758,1709279959334,668.94,0.00022191,2]
[315915759,1709279959587,668.94,0.00022465,2]
[315915760,1709279959862,668.94,0.00022739,2]
[315915761,1709279960680,527.48,0.00021917,2]
[315915762,1709279960798,500.0,0.00021917,2]
[315915763,1709279960862,639.72,0.00021917,2]
[315915764,1709279961094,500.0,0.00022191,2]
[315915765,1709279961168,639.72,0.00022191,2]
[315915766,1709279961290,527.48,0.00022191,2]
[315915767,1709279961354,500.0,0.00022465,2]
[315915768,1709279961428,639.72,0.00022465,2]
[315915769,1709279961542,527.48,0.00022465,2]
[315915770,1709279961634,500.0,0.00022739,2]
[315915771,1709279961708,639.72,0.00022739,2]
[315915772,1709279961806,527.48,0.00022739,2]
[315915773,1709279962403,500.0,0.00021917,2]
[315915774,1709279962742,500.0,0.00022191,2]
[315915775,1709279963013,500.0,0.00022465,2]
[315915776,1709279963308,500.0,0.00022739,2]
[315915777,1709279965366,344.15446468,0.00021917,2]
[315915778,1709279968026,500.0,0.00021917,2]
[315915779,1709279968183,500.0,0.00022191,2]
[315915780,1709279968311,512.03,0.00022549,2]
[315915781,1709279968465,500.0,0.00022465,2]
[315915782,1709279968750,500.0,0.00022739,2]
[315915783,1709279968994,512.03,0.00022823,2]
[315915784,1709279969513,544.33,0.00021917,2]
[315915785,1709279969774,544.33,0.00022191,2]
[315915786,1709279970032,544.33,0.00022465,2]
[315915787,1709279970318,544.33,0.00022739,2]
[315915788,1709279970523,829.06,0.00021917,2]
[315915789,1709279970776,829.06,0.00022191,2]
[315915790,1709279971068,829.06,0.00022465,2]
[315915791,1709279971326,829.06,0.00022739,2]
[315915792,1709279971572,500.0,0.00021917,2]
[315915793,1709279971831,500.0,0.00022191,2]
[315915794,1709279971876,500.0,0.00021917,2]
[315915795,1709279972126,500.0,0.00022465,2]
[315915796,1709279972166,500.0,0.00022191,2]
[315915797,1709279972204,823.47,0.00021999,2]
[315915798,1709279972453,500.0,0.00022739,2]
[315915799,1709279972489,823.47,0.00022273,2]
[315915800,1709279972600,500.0,0.00022465,2]
[315915801,1709279972707,823.47,0.00022547,2]
[315915802,1709279972907,500.0,0.00022739,2]
[315915803,1709279973007,823.47,0.00022821,2]
[315915804,1709279974712,500.0,0.00021917,2]
[315915805,1709279975119,284525.91037228,0.000227,2]
[315915806,1709279975302,500.0,0.00022191,2]
[315915807,1709279975593,500.0,0.00022465,2]
[315915808,1709279975833,500.0,0.00021917,2]
[315915809,1709279975874,500.0,0.00022739,2]
[315915810,1709279975975,500.0,0.00021917,2]
[315915811,1709279976076,500.0,0.00022191,2]
[315915812,1709279976237,500.0,0.00022191,2]
[315915813,1709279976541,500.0,0.00022465,2]
[315915814,1709279976663,500.0,0.00022465,2]
[315915815,1709279976814,500.0,0.00022739,2]
[315915816,1709279976942,500.0,0.00022739,2]
[315915817,1709279977231,671.49,0.00021917,2]
[315915818,1709279977509,671.49,0.00022191,2]
[315915819,1709279977775,671.49,0.00022465,2]
[315915820,1709279978510,671.49,0.00022739,2]
[315915821,1709279978585,155.0,0.000228,2]
[315915822,1709279978928,500.0,0.00021917,2]
[315915823,1709279979176,500.0,0.00022191,2]
[315915824,1709279979443,500.0,0.00022465,2]
[315915825,1709279979539,854.47,0.00021917,2]
[315915826,1709279979715,500.0,0.00022739,2]
[315915827,1709279979827,854.47,0.00022191,2]
[315915828,1709279980061,406.29585199,0.00021917,2]
[315915829,1709279980125,854.47,0.00022465,2]
[315915830,1709279980302,500.0,0.00021917,2]
[315915831,1709279980420,854.47,0.00022739,2]
[315915832,1709279980561,500.0,0.00022191,2]
[315915833,1709279980852,500.0,0.00022465,2]
[315915834,1709279981122,500.0,0.00022739,2]
[315915835,1709279981591,2554.04,0.00021999,2]
[315915836,1709279982182,2554.04,0.00022273,2]
[315915837,1709279982468,2554.04,0.00022547,2]
[315915838,1709279982743,2554.04,0.00022821,2]
[315915839,1709279984209,500.0,0.00021917,2]
[315915840,1709279984456,17506.93,0.00022189,2]
[315915841,1709279984498,395.16035524,0.00022191,2]
[315915842,1709279985594,952.09,0.00021917,2]
[315915843,1709279985888,952.09,0.00022191,2]
[315915844,1709279986149,952.09,0.00022465,2]
[315915845,1709279986250,1368.8,0.00021917,2]
[315915846,1709279986407,952.09,0.00022739,2]
[315915847,1709279986570,1368.8,0.00022191,2]
[315915848,1709279986830,1368.8,0.00022465,2]
[315915849,1709279987122,1368.8,0.00022739,2]
[315915850,1709279987909,922.08,0.00021917,2]
[315915851,1709279988163,922.08,0.00022191,2]
[315915852,1709279988210,500.0,0.00021917,2]
[315915853,1709279988254,662.05,0.00022549,2]
[315915854,1709279988454,922.08,0.00022465,2]
[315915855,1709279988876,185.47887786,0.00022191,2]
[315915856,1709279988920,662.05,0.00022823,2]
[315915857,1709279988964,922.08,0.00022739,2]
[315915858,1709279990262,936.73,0.00021917,2]
[315915859,1709279990549,936.73,0.00022191,2]
[315915860,1709279990807,936.73,0.00022465,2]
[315915861,1709279991085,936.73,0.00022739,2]
[315915862,1709279992881,500.0,0.00021917,2]
[315915863,1709279993185,288.72981572,0.00022191,2]
[315915864,1709279994021,539.6,0.00021917,2]
[315915865,1709279994447,539.6,0.00022191,2]
[315915866,1709279994716,539.6,0.00022465,2]
[315915867,1709279995020,539.6,0.00022739,2]
[315915868,1709279995096,284525.91037228,0.000227,2]
[315915869,1709279996364,500.0,0.00021917,2]
[315915870,1709279996611,500.0,0.00022191,2]
[315915871,1709279996686,1907.07,0.00021917,2]
[315915872,1709279996901,500.0,0.00022465,2]
[315915873,1709279996955,1907.07,0.00022191,2]
[315915874,1709279997107,500.0,0.00021917,2]
[315915875,1709279997157,500.0,0.00021917,2]
[315915876,1709279997230,1907.07,0.00022465,2]
[315915877,1709279997337,500.0,0.00022739,2]
[315915878,1709279997374,500.0,0.00022191,2]
[315915879,1709279997418,500.0,0.00022191,2]
[315915880,1709279997546,1907.07,0.00022739,2]
[315915881,1709279997652,500.0,0.00021917,2]
[315915882,1709279997693,500.0,0.00022465,2]
[315915883,1709279997905,500.0,0.00022191,2]
[315915884,1709279997958,500.0,0.00022739,2]
[315915885,1709279998014,500.0,0.00022465,2]
[315915886,1709279998093,500.0,0.00022549,2]
[315915887,1709279998280,500.0,0.00022739,2]
[315915888,1709279998366,500.0,0.00022823,2]
[315915889,1709279998433,195.0,0.00023,2]
[315915890,1709279998467,155.0,0.000228,2]
[315915891,1709279998550,500.0,0.00022465,2]
[315915892,1709279998838,500.0,0.00022739,2]
[315915893,1709280001071,325.0,0.00023,2]
[315915894,1709280001408,2002.0,0.00023,2]
[315915895,1709280001478,492.92646669,0.00022449,3]
[315915896,1709280001662,767.52,0.00021917,2]
[315915897,1709280001972,767.52,0.00022191,2]
[315915898,1709280002153,437.33609476,0.0002219,2]
[315915899,1709280002560,767.52,0.00022465,2]
[315915900,1709280002646,500.0,0.00022549,2]
[315915901,1709280002826,767.52,0.00022739,2]
[315915902,1709280002938,500.0,0.00021917,2]
[315915903,1709280003033,500.0,0.00022823,2]
[315915904,1709280003073,500.0,0.00021917,2]
[315915905,1709280003194,500.0,0.00022191,2]
[315915906,1709280003365,500.0,0.00022191,2]
[315915907,1709280003469,275.08032508,0.00022465,2]
[315915908,1709280003524,1218.81,0.00021999,2]
[315915909,1709280003660,500.0,0.00022465,2]
[315915910,1709280003829,1218.81,0.00022273,2]
[315915911,1709280004066,500.0,0.00022739,2]
[315915912,1709280004123,1218.81,0.00022547,2]
[315915913,1709280004558,1218.81,0.00022821,2]
[315915914,1709280007144,500.0,0.00021917,2]
[315915915,1709280007185,840.08,0.00021917,2]
[315915916,1709280007383,500.0,0.00022191,2]
[315915917,1709280007521,200.0,0.00023,2]
[315915918,1709280007618,914.27,0.00022549,2]
[315915919,1709280007673,500.0,0.00022465,2]
[315915920,1709280007774,840.08,0.00022191,2]
[315915921,1709280007923,500.0,0.00022739,2]
[315915922,1709280007965,914.27,0.00022823,2]
[315915923,1709280008028,500.0,0.00021917,2]
[315915924,1709280008067,840.08,0.00022465,2]
[315915925,1709280008660,500.0,0.00021917,2]
[315915926,1709280008705,840.08,0.00022739,2]
[315915927,1709280008757,500.0,0.00022191,2]
[315915928,1709280008827,500.0,0.00022191,2]
[315915929,1709280008866,990.07,0.00022198,2]
[315915930,1709280008961,500.0,0.00022699,2]
[315915931,1709280009034,500.0,0.00022465,2]
[315915932,1709280009075,500.0,0.00022465,2]
[315915933,1709280009141,500.0,0.00022973,2]
[315915934,1709280009216,500.0,0.00022739,2]
[315915935,1709280009263,500.0,0.00022739,2]
[315915936,1709280009977,2000.0,0.000226,2]
[315915937,1709280010926,388.31,0.00022178,2]
[315915938,1709280011184,12441.63085894,0.00022999,2]
[315915939,1709280012482,500.0,0.00021917,2]
[315915940,1709280012522,155.0,0.000228,2]
[315915941,1709280012701,1000.0,0.00022449,3]
[315915942,1709280012796,500.0,0.00022191,2]
[315915943,1709280012997,500.0,0.00022465,2]
[315915944,1709280013215,3441.36,0.00021917,2]
[315915945,1709280013346,500.0,0.00022739,2]
[315915946,1709280013425,148237.99930396,0.000227,2]
[315915947,1709280013465,750.0,0.000219,2]
[315915948,1709280013508,3441.36,0.00022191,2]
[315915949,1709280013961,3441.36,0.00022465,2]
[315915950,1709280014135,788.85,0.00021999,2]
[315915951,1709280014241,3441.36,0.00022739,2]
[315915952,1709280014414,788.85,0.00022273,2]
[315915953,1709280014735,788.85,0.00022547,2]
[315915954,1709280014954,788.85,0.00022821,2]
[315915955,1709280015143,2698.0,0.00021505,2]
[315915956,1709280015685,613.05,0.00021917,2]
[315915957,1709280015962,613.05,0.00022191,2]
[315915958,1709280016237,613.05,0.00022465,2]
[315915959,1709280016533,613.05,0.00022739,2]
[315915960,1709280017451,500.0,0.00021917,2]
[315915961,1709280017736,500.0,0.00022191,2]
[315915962,1709280017776,500.0,0.00022549,2]
[315915963,1709280018051,500.0,0.00022465,2]
[315915964,1709280018089,500.0,0.00022823,2]
[315915965,1709280018302,500.0,0.00022739,2]
[315915966,1709280018365,522.63076482,0.00021917,2]
[315915967,1709280018522,500.0,0.00021917,2]
[315915968,1709280018798,500.0,0.00022191,2]
[315915969,1709280019064,500.0,0.00022465,2]
[315915970,1709280019292,500.0,0.00021917,2]
[315915971,1709280019331,500.0,0.00022739,2]
[315915972,1709280019533,500.0,0.00022191,2]
[315915973,1709280019737,1000.0,0.00023,6]
[315915974,1709280019798,500.0,0.00022465,2]
[315915975,1709280020339,500.0,0.00022739,2]
[315915976,1709280020382,999.0,0.00022,4]
[315915977,1709280022138,1588.61,0.00021917,2]
[315915978,1709280022422,1588.61,0.00022191,2]
[315915979,1709280022528,500.0,0.00021917,2]
[315915980,1709280022701,1588.61,0.00022465,2]
[315915981,1709280022859,500.0,0.00022191,2]
[315915982,1709280023010,1588.61,0.00022739,2]
[315915983,1709280023127,500.0,0.00022465,2]
[315915984,1709280023397,500.0,0.00022739,2]
[315915985,1709280023672,500.0,0.00021917,2]
[315915986,1709280024007,945.28,0.00021999,2]
[315915987,1709280024063,500.0,0.00022191,2]
[315915988,1709280024098,2000.0,0.000219,2]
[315915989,1709280024231,945.28,0.00022273,2]
[315915990,1709280024278,500.0,0.00022465,2]
[315915991,1709280024388,945.28,0.00022547,2]
[315915992,1709280024668,945.28,0.00022821,2]
[315915993,1709280024749,500.0,0.00021917,2]
[315915994,1709280024840,500.0,0.00022739,2]
[315915995,1709280024903,920.78,0.00021917,2]
[315915996,1709280025165,920.78,0.00022191,2]
[315915997,1709280025311,806.58,0.00021917,2]
[315915998,1709280025390,500.0,0.00022191,2]
[315915999,1709280025580,920.78,0.00022465,2]
[315916000,1709280025618,806.58,0.00022191,2]
[315916001,1709280025875,920.78,0.00022739,2]
[315916002,1709280025920,806.58,0.00022465,2]
[315916003,1709280026170,806.58,0.00022739,2]
[315916004,1709280026277,1323.84,0.00021917,2]
[315916005,1709280026569,1323.84,0.00022191,2]
[315916006,1709280026610,500.0,0.00022465,2]
[315916007,1709280026893,500.0,0.00022739,2]
[315916008,1709280026939,1323.84,0.00022465,2]
[315916009,1709280027160,1323.84,0.00022739,2]
[315916010,1709280027961,940.61,0.00022549,2]
[315916011,1709280028238,940.61,0.00022823,2]
[315916012,1709280028412,20369.05631627,0.00022539,2]
[315916013,1709280030221,669.14,0.000228,2]
[315916014,1709280030945,308.554,0.00021505,2]
[315916015,1709280032444,500.0,0.00021917,2]
[315916016,1709280032491,155.0,0.000228,2]
[315916017,1709280032774,500.0,0.00022191,2]
[315916018,1709280033145,148237.99930396,0.000227,2]
[315916019,1709280033378,500.0,0.00022465,2]
[315916020,1709280033431,422.98,0.00022195,2]
[315916021,1709280033599,422.98,0.00022311,2]
[315916022,1709280033655,500.0,0.00021917,2]
[315916023,1709280033695,500.0,0.00022739,2]
[315916024,1709280033809,422.98,0.00022428,2]
[315916025,1709280034035,500.0,0.00022191,2]
[315916026,1709280034106,422.98,0.00022545,2]
[315916027,1709280034217,500.0,0.00022465,2]
[315916028,1709280034324,422.98,0.00022662,2]
[315916029,1709280034474,500.0,0.00022739,2]
[315916030,1709280034512,422.98,0.00022779,2]
[315916031,1709280034547,519.11,0.00022699,2]
[315916032,1709280034777,422.98,0.00022896,2]
[315916033,1709280034816,519.11,0.00022973,2]
[315916034,1709280034960,500.0,0.00021917,2]
[315916035,1709280035255,500.0,0.00021917,2]
[315916036,1709280035300,500.0,0.00022191,2]
[315916037,1709280035528,500.0,0.00022191,2]
[315916038,1709280035620,500.0,0.00022465,2]
[315916039,1709280035802,500.0,0.00022465,2]
[315916040,1709280035850,500.0,0.00022739,2]
[315916041,1709280036050,500.0,0.00022739,2]
[315916042,1709280038091,500.0,0.00021917,2]
[315916043,1709280038182,500.0,0.00021999,2]
[315916044,1709280038357,500.0,0.00022191,2]
[315916045,1709280038395,1110.14,0.00021917,2]
[315916046,1709280038490,500.0,0.00022273,2]
[315916047,1709280038601,889.98,0.00021917,2]
[315916048,1709280038639,500.0,0.00022465,2]
[315916049,1709280038680,1110.14,0.00022191,2]
[315916050,1709280038785,500.0,0.00022547,2]
[315916051,1709280038924,889.98,0.00022191,2]
[315916052,1709280038966,1110.14,0.00022465,2]
[315916053,1709280039017,500.0,0.00022739,2]
[315916054,1709280039274,500.0,0.00022821,2]
[315916055,1709280039329,889.98,0.00022465,2]
[315916056,1709280039372,1110.14,0.00022739,2]
[315916057,1709280039461,4021.58,0.00022549,2]
[315916058,1709280039494,889.98,0.00022739,2]
[315916059,1709280039763,4021.58,0.00022823,2]
[315916060,1709280040767,500.0,0.00021917,2]
[315916061,1709280041488,500.0,0.00022191,2]
[315916062,1709280041588,500.0,0.00022465,2]
[315916063,1709280041677,500.0,0.00022739,2]
[315916064,1709280042195,500.0,0.00021917,2]
[315916065,1709280042474,500.0,0.00022191,2]
[315916066,1709280042760,500.0,0.00022465,2]
[315916067,1709280042961,2335.36,0.00021917,2]
[315916068,1709280043128,500.0,0.00022739,2]
[315916069,1709280043215,2335.36,0.00022191,2]
[315916070,1709280043476,2335.36,0.00022465,2]
[315916071,1709280043749,2335.36,0.00022739,2]
[315916072,1709280043791,190.0,0.00021921,2]
[315916073,1709280044471,154.0,0.00021921,2]
[315916074,1709280044765,1079.0,0.00021921,2]
[315916075,1709280045309,217.0,0.00021505,2]
[315916076,1709280047873,601.0,0.00021505,2]
[315916077,1709280047911,250.0,0.000219,2]
[315916078,1709280048301,1259.0,0.00021505,2]
[315916079,1709280051022,500.0,0.00021917,2]
[315916080,1709280051096,500.0,0.00021917,2]
[315916081,1709280051338,500.0,0.00022191,2]
[315916082,1709280051423,500.0,0.00022191,2]
[315916083,1709280051876,500.0,0.00022465,2]
[315916084,1709280051920,500.0,0.00022465,2]
[315916085,1709280051996,500.0,0.00022739,2]
[315916086,1709280052036,500.0,0.00022739,2]
[315916087,1709280052108,1734.99,0.00022549,2]
[315916088,1709280052601,500.0,0.00021999,2]
[315916089,1709280052745,1734.99,0.00022823,2]
[315916090,1709280052798,615.25,0.00021917,2]
[315916091,1709280052871,500.0,0.00022273,2]
[315916092,1709280053122,615.25,0.00022191,2]
[315916093,1709280053165,148237.99930396,0.000227,2]
[315916094,1709280053212,500.0,0.00022547,2]
[315916095,1709280053316,615.25,0.00022465,2]
[315916096,1709280053433,479.93443444,0.00022821,2]
[315916097,1709280053575,615.25,0.00022739,2]
[315916098,1709280054488,155.0,0.000228,2]
[315916099,1709280054887,155.0,0.00022999,2]
[315916100,1709280055191,500.0,0.00021917,2]
[315916101,1709280055478,500.0,0.00022191,2]
[315916102,1709280055629,500.0,0.00021917,2]
[315916103,1709280055751,288.46546029,0.00022465,2]
[315916104,1709280055914,500.0,0.00022191,2]
[315916105,1709280056185,500.0,0.00022465,2]
[315916106,1709280056361,1442.77,0.00021999,2]
[315916107,1709280056659,1442.77,0.00022273,2]
[315916108,1709280056815,500.0,0.00022739,2]
[315916109,1709280056986,1442.77,0.00022547,2]
[315916110,1709280057249,1442.77,0.00022821,2]
[315916111,1709280058321,500.0,0.00021917,2]
[315916112,1709280058584,500.0,0.00022191,2]
[315916113,1709280058624,500.0,0.00021917,2]
[315916114,1709280058837,500.0,0.00022465,2]
[315916115,1709280058882,500.0,0.00022191,2]
[315916116,1709280059042,500.0,0.00022699,2]
[315916117,1709280059108,500.0,0.00022465,2]
[315916118,1709280059141,500.0,0.00022739,2]
[315916119,1709280059243,277.0,0.00021505,2]
[315916120,1709280059302,500.0,0.00022973,2]
[315916121,1709280059387,500.0,0.00022739,2]
[315916122,1709280059577,656.42,0.00021917,2]
[315916123,1709280059850,656.42,0.00022191,2]
[315916124,1709280060162,656.42,0.00022465,2]
[315916125,1709280060404,656.42,0.00022739,2]
[315916126,1709280060786,500.0,0.00021917,2]
[315916127,1709280061068,500.0,0.00022191,2]
[315916128,1709280061384,500.0,0.00022465,2]
[315916129,1709280061605,500.0,0.00022739,2]
[315916130,1709280062442,837.0,0.00021505,2]
[315916131,1709280062488,1479.06,0.00022549,2]
[315916132,1709280062528,500.0,0.00021917,2]
[315916133,1709280062625,626.13507604,0.00021917,2]
[315916134,1709280062738,1479.06,0.00022823,2]
[315916135,1709280062788,500.0,0.00022191,2]
[315916136,1709280062859,500.0,0.00022465,2]
[315916137,1709280062909,500.0,0.00021917,2]
[315916138,1709280062967,500.0,0.00022739,2]
[315916139,1709280063019,431.0,0.00021505,2]
[315916140,1709280063098,500.0,0.00022191,2]
[315916141,1709280063432,500.0,0.00022465,2]
[315916142,1709280063725,500.0,0.00022739,2]
[315916143,1709280064578,500.0,0.00021917,2]
[315916144,1709280064868,500.0,0.00022191,2]
[315916145,1709280065127,177.80532213,0.00022465,2]
[315916146,1709280067277,322.0,0.00021505,2]
[315916147,1709280068114,500.0,0.00021917,2]
[315916148,1709280068383,500.0,0.00022191,2]
[315916149,1709280068659,500.0,0.00022465,2]
[315916150,1709280068889,3962.88,0.00021917,2]
[315916151,1709280068942,500.0,0.00022739,2]
[315916152,1709280069073,500.0,0.00021917,2]
[315916153,1709280069318,3962.88,0.00022191,2]
[315916154,1709280069363,500.0,0.00022191,2]
[315916155,1709280069598,3962.88,0.00022465,2]
[315916156,1709280069637,500.0,0.00022465,2]
[315916157,1709280070212,3962.88,0.00022739,2]
[315916158,1709280070284,500.0,0.00022739,2]
[315916159,1709280070655,500.0,0.00021917,2]
[315916160,1709280070944,157.60761227,0.00022191,2]
[315916161,1709280071114,148237.99930396,0.000227,2]
[315916162,1709280071438,500.0,0.00021917,2]
[315916163,1709280071714,500.0,0.00022191,2]
[315916164,1709280071989,500.0,0.00022465,2]
[315916165,1709280072158,823.71,0.00022549,2]
[315916166,1709280072241,500.0,0.00022739,2]
[315916167,1709280072711,823.71,0.00022823,2]
[315916168,1709280072783,3567.34,0.00021999,2]
[315916169,1709280073036,3567.34,0.00022273,2]
[315916170,1709280073305,3567.34,0.00022547,2]
[315916171,1709280073591,3567.34,0.00022821,2]
[315916172,1709280073731,1470.27,0.00021917,2]
[315916173,1709280074069,1470.27,0.00022191,2]
[315916174,1709280074349,1470.27,0.00022465,2]
[315916175,1709280074494,268.91133039,0.000228,2]
[315916176,1709280074658,437.33609476,0.00022999,2]
[315916177,1709280075000,6607.33161143,0.000219,2]
[315916178,1709280075040,1470.27,0.00022739,2]
[315916179,1709280076072,511.09,0.00021917,2]
[315916180,1709280076368,511.09,0.00022191,2]
[315916181,1709280076622,511.09,0.00022465,2]
[315916182,1709280076897,511.09,0.00022739,2]
[315916183,1709280077313,500.0,0.00021917,2]
[315916184,1709280077597,500.0,0.00022191,2]
[315916185,1709280077852,505.56271979,0.00022465,2]
[315916186,1709280079885,2909.0,0.00021505,2]
[315916187,1709280081547,500.0,0.00022699,2]
[315916188,1709280081710,12441.63085894,0.00022999,2]
[315916189,1709280081826,500.0,0.00022973,2]
[315916190,1709280081867,338.0,0.00021505,2]
[315916191,1709280082138,1646.04,0.00022549,2]
[315916192,1709280082181,69979.2009616,0.0002299,2]
[315916193,1709280082414,1646.04,0.00022823,2]
[315916194,1709280083541,500.0,0.00021917,2]
[315916195,1709280083630,500.0,0.00022191,2]
[315916196,1709280083739,500.0,0.00022465,2]
[315916197,1709280083978,500.0,0.00022739,2]
[315916198,1709280084286,500.0,0.00021917,2]
[315916199,1709280084562,500.0,0.00022191,2]
[315916200,1709280084893,500.0,0.00022465,2]
[315916201,1709280085066,504.8376,0.000229,2]
[315916202,1709280085124,500.0,0.00022739,2]
[315916203,1709280085392,1455.0,0.00021505,2]
[315916204,1709280085441,1164.77,0.00021999,2]
[315916205,1709280085512,1732.85,0.00021917,2]
[315916206,1709280085675,1164.77,0.00022273,2]
[315916207,1709280085824,1732.85,0.00022191,2]
[315916208,1709280085934,1164.77,0.00022547,2]
[315916209,1709280086047,1732.85,0.00022465,2]